{"text_format":"3","workbook":"xlsx","n_sheets":4,"sheets":["Kezdés","Havi költségvetési jelentés","Havi kiadások","További adatok"],"not_rendered":{"charts":1,"defined_names":4,"pivot_tables":2},"read":"whole","date_system":"1900"}

{"sheet":"Kezdés","index":0,"n_rows":8,"n_cols":2,"rows_kept":8}
[null,"A SABLON ISMERTETÉSE"]
[null,"Ezzel a munkafüzettel nyomon követheti kiadásait, és létrehozhat egy családi költségvetést."]
[null,"A Havi költségvetési jelentés munkalapon adhatja meg a különböző forrásokból származó tervezett és tényleges bevételeket, a Havi kiadások munkalapon pedig a különböző kategóriák tervezett és tényleges költési összegeit."]
[null,"A sablon automatikusan kiszámítja a tervezett és a tényleges egyenleges, valamint frissíti a költségvetés összegzését és a Költségvetés áttekint diagramot a Havi költségvetés összegzése munkalapon."]
[null,"A További adatok munkalapon lévő táblázatban módosíthatja a kategóriát, illetve megadhat egy újat."]
[null,"Megjegyzés: "]
[null,"A HAVI KÖLTSÉGVETÉSI JELENTÉS munkalap A oszlopában és a HAVI KIADÁSOK és a TOVÁBBI ADATOK munkalap A1 cellájában további útmutatás szerepel. Ez a szöveg szándékosan van elrejtve. Ha törölni szeretné a szöveget, jelölje ki az A oszlopot vagy az A1 cellát, majd nyomja le a DELETE billentyűt. Ha láthatóvá szeretné tenni a szöveget, jelölje ki az A oszlopot vagy az A1 cellát, majd módosítsa a betűszínt."]
[null,"Ha többet szeretne megtudni a táblázatokról, nyomja le a SHIFT+F10 billentyűkombinációt egy táblázaton belül, és válassza a TÁBLÁZAT parancsot, majd a HELYETTESÍTŐ SZÖVEG elemet. Ha a kimutatásokról szeretne bővebben tájékozódni, nyomja le a SHIFT+F10 billentyűkombinációt egy táblázaton belül, és válassza a KIMUTATÁS BEÁLLÍTÁSAI parancsot, majd a HELYETTESÍTŐ SZÖVEG fület."]

{"sheet":"Havi költségvetési jelentés","index":1,"n_rows":34,"n_cols":14,"rows_kept":34,"merged":[[0,1,0,4],[0,5,0,7],[0,12,0,13],[1,9,5,13],[2,2,2,5],[3,2,3,5],[4,2,4,5],[7,1,10,1],[7,5,10,5],[7,6,10,6],[8,9,31,9],[12,1,16,1],[12,5,16,5],[12,6,16,6],[19,1,34,6]]}
["Ezen a munkalapon létrehozhat egy havi költségvetési jelentés. Ebben a cellában a munkalap címe, a J1 cellában pedig az alcím szerepel. Az F1 cellát választva a Havi kiadások munkalapra juthat. Ennek az oszlopnak a celláiban a munkalap használatát megkönnyítő útmutatás olvasható.","Költségvetés áttekintése",{"$nulls":3},"Havi kiadások",{"$nulls":3},"Költségvetés összegzése",null,null,"Ebben a cellában egy zöld búzakalász látható."]
["A jobbra lévő cellában szerepel az Egyenleg felirat. A J2–N6 cellákban szerepelnek a táblázatadatok szűrésére használható kimutatásszeletelők. Ha több kategóriát szeretne kijelölni, tartsa lenyomva a Control billentyűt.","Egyenleg",{"$nulls":7},"Ebben a cellában szerepel az alábbi kimutatást a kijelölt kategória szerint szűrő kategóriaszeletelő."]
["A jobbra lévő cellában szerepel a Tervezett egyenleg felirat. A G3 cellában a sablon automatikusan kiszámítja a tervezett egyenleg.","Tervezett egyenleg","(Tervezett mínusz kiadások)",{"$nulls":3},{"$f":"D17-SUM(KöltségetésRészletei[Tervezett költség])","v":{"v":1585,"d":"1,585 Ft"}}]
["A jobbra lévő cellában szerepel a Tényleges egyenleg felirat. A G4 cellában a sablon automatikusan kiszámítja a tényleges egyenleg.","Tényleges egyenleg ","(Tényleges mínusz kiadások)",{"$nulls":3},{"$f":"D11-SUM(KöltségetésRészletei[Tényleges költség])","v":{"v":1740,"d":"1,740 Ft"}}]
["A jobbra lévő cellában szerepel a Különbözet felirat. A G5 cellában a sablon automatikusan kiszámítja a különbözet. A következő utasítás az A7 cellában található.","Különbözet","(Tényleges mínusz tervezett)",{"$nulls":3},{"$f":"G4-G3","v":{"v":155,"d":"155 Ft"}}]
[]
["A jobbra lévő cellában a Bevétel, az F7 cellában a Kiadások felirat látható, a J7 cellában pedig a költségvetés összegzése tippjei szerepelnek.","Bevétel",{"$nulls":3},"Kiadások",{"$nulls":3},"A frissítéshez jelölje ki az alábbi kimutatást, és válassza az Elemzés lap Frissítés elemét."]
["A jobbra lévő cellában a Tényleges bevétel, az F8 cellában pedig a Tényleges kiadások felirat látható. A D8 cellában adhatja meg az 1. bevételt. A G8 cellában a sablon automatikusan kiszámítja a tényleges kiadásokat.","TÉNYLEGES","Bevétel 1",{"v":5800,"d":"5,800 Ft"},null,"TÉNYLEGES",{"$f":"SUM(KöltségetésRészletei[Tényleges költség])","v":{"v":7860,"d":"7,860 Ft"}}]
["A D9 cellában adhatja meg a 2. bevételt. A J9 cellában egy kép szerepel. A K9 cellában kezdődik a kimutatás. A kimutatás frissítéséhez válassza az Elemzés lapon a Frissítés elemet.",null,"Bevétel 2",{"v":2300,"d":"2,300 Ft"},{"$nulls":5},"Ebben a cellában egy kép szerepel.","Kategória","Tervezett költség ","Tényleges költség ","Különbözet "]
["A D10 cellában adhatja meg a plusz bevétel.",null,"Plusz bevétel",{"v":1500,"d":"1,500 Ft"},{"$nulls":6},"Gyerekek",{"v":140,"d":"140 Ft"},{"v":140,"d":"140 Ft"},{"v":0,"d":"0 Ft"}]
["A C11 cellában az Összes bevétel felirat látható, a sablon pedig automatikusan kiszámítja az összes bevételt a D11 cellában. A következő utasítás az A13 cellában található.",null,"Összes bevétel",{"$f":"SUM(D8:D10)","v":{"v":9600,"d":"9,600 Ft"}}]
[{"$nulls":10},"Szórakozás",{"v":400,"d":"400 Ft"},{"v":358,"d":"358 Ft"},{"v":42,"d":"42 Ft"}]
["A jobbra lévő cellában a Tervezett bevétel, az F13 cellában pedig a Tervezett kiadások felirat látható. A G13 cellában a sablon automatikusan kiszámítja a tervezett kiadásokat.","TERVEZETT",{"$nulls":3},"TERVEZETT",{"$f":"SUM(KöltségetésRészletei[Tervezett költség])","v":{"v":7915,"d":"7,915 Ft"}}]
["A D14 cellában adhatja meg az 1. tervezett bevételt.",null,"Bevétel 1",{"v":6000,"d":"6,000 Ft"},{"$nulls":6},"Étel",{"v":1100,"d":"1,100 Ft"},{"v":1320,"d":"1,320 Ft"},{"v":-220,"d":"-220 Ft"}]
["A D15 cellában adhatja meg a 2. tervezett bevételt.",null,"Bevétel 2",{"v":1000,"d":"1,000 Ft"}]
["A D16 cellában adhatja meg a plusz bevétel.",null,"Plusz bevétel",{"v":2500,"d":"2,500 Ft"},{"$nulls":6},"Ajándék és jótékonyság",{"v":100,"d":"100 Ft"},{"v":125,"d":"125 Ft"},{"v":-25,"d":"-25 Ft"}]
["A C17 cellában az Összes bevétel felirat látható, a sablon pedig automatikusan kiszámítja az összes bevételt a D17 cellában. A következő utasítás az A20 cellában található.",null,"Összes bevétel",{"$f":"SUM(D14:D16)","v":{"v":9500,"d":"9,500 Ft"}}]
[{"$nulls":10},"Lakás",{"v":2830,"d":"2,830 Ft"},{"v":2702,"d":"2,702 Ft"},{"v":128,"d":"128 Ft"}]
[]
["A jobbra lévő cellában egy, a kiadások százalékát kategóriák szerint megjelenítő kördiagram látható.","Ebben a cellában egy, a kiadások százalékát kategóriák szerint megjelenítő kördiagram látható.",{"$nulls":8},"Biztosítás",{"v":900,"d":"900 Ft"},{"v":900,"d":"900 Ft"},{"v":0,"d":"0 Ft"}]
[]
[{"$nulls":10},"Hitelek",{"v":200,"d":"200 Ft"},{"v":200,"d":"200 Ft"},{"v":0,"d":"0 Ft"}]
[]
[{"$nulls":10},"Kozmetikumok",{"v":150,"d":"150 Ft"},{"v":140,"d":"140 Ft"},{"v":10,"d":"10 Ft"}]
[]
[{"$nulls":10},"Háziállatok",{"v":170,"d":"170 Ft"},{"v":100,"d":"100 Ft"},{"v":70,"d":"70 Ft"}]
[]
[{"$nulls":10},"Megtakarítások és befektetések",{"v":200,"d":"200 Ft"},{"v":200,"d":"200 Ft"},{"v":0,"d":"0 Ft"}]
[]
[{"$nulls":10},"Adók",{"v":300,"d":"300 Ft"},{"v":300,"d":"300 Ft"},{"v":0,"d":"0 Ft"}]
[]
[{"$nulls":10},"Közlekedés",{"v":1425,"d":"1,425 Ft"},{"v":1375,"d":"1,375 Ft"},{"v":50,"d":"50 Ft"}]
[]
[{"$nulls":10},"Végösszeg",{"v":7915,"d":"7,915 Ft"},{"v":7860,"d":"7,860 Ft"},{"v":55,"d":"55 Ft"}]

{"sheet":"Havi kiadások","index":2,"n_rows":62,"n_cols":7,"rows_kept":62,"merged":[[0,1,0,4],[0,5,0,6]]}
["Ezen a munkalapon kiszámíthatja a havi kiadásait. A jobbra lévő cellában szerepel a munkalap címe. Az F1 cellát választva a Havi költségvetési jelentés munkalapra juthat.","Havi kiadások",{"$nulls":3},"Havi költségvetési jelentés"]
[" A jobbra lévő cellában kezdődő Költségvetés részletei táblázatban adhatja meg az adatokat.","Leírás","Kategória","Tervezett költség","Tényleges költség","Különbözet","Tényleges költség áttekintése"]
[null,"Iskolán kívüli tevékenységek","Gyerekek",{"v":40,"d":"40 Ft"},{"v":40,"d":"40 Ft"},{"$f":"KöltségetésRészletei[[#This Row],[Tervezett költség]]-KöltségetésRészletei[[#This Row],[Tényleges költség]]","v":{"v":0,"d":"0 Ft"}},{"$f":"KöltségetésRészletei[[#This Row],[Tényleges költség]]","v":{"v":40,"d":"40 Ft"}}]
[null,"Egészségügy","Gyerekek",null,null,{"$f":"KöltségetésRészletei[[#This Row],[Tervezett költség]]-KöltségetésRészletei[[#This Row],[Tényleges költség]]","v":{"v":0,"d":"0 Ft"}},{"$f":"KöltségetésRészletei[[#This Row],[Tényleges költség]]","v":{"v":0,"d":"0 Ft"}}]
[null,"Iskolai kellékek","Gyerekek",null,null,{"$f":"KöltségetésRészletei[[#This Row],[Tervezett költség]]-KöltségetésRészletei[[#This Row],[Tényleges költség]]","v":{"v":0,"d":"0 Ft"}},{"$f":"KöltségetésRészletei[[#This Row],[Tényleges költség]]","v":{"v":0,"d":"0 Ft"}}]
[null,"Iskolai kiadások","Gyerekek",{"v":100,"d":"100 Ft"},{"v":100,"d":"100 Ft"},{"$f":"KöltségetésRészletei[[#This Row],[Tervezett költség]]-KöltségetésRészletei[[#This Row],[Tényleges költség]]","v":{"v":0,"d":"0 Ft"}},{"$f":"KöltségetésRészletei[[#This Row],[Tényleges költség]]","v":{"v":100,"d":"100 Ft"}}]
[null,"Koncertek","Szórakozás",{"v":50,"d":"50 Ft"},{"v":40,"d":"40 Ft"},{"$f":"KöltségetésRészletei[[#This Row],[Tervezett költség]]-KöltségetésRészletei[[#This Row],[Tényleges költség]]","v":{"v":10,"d":"10 Ft"}},{"$f":"KöltségetésRészletei[[#This Row],[Tényleges költség]]","v":{"v":40,"d":"40 Ft"}}]
[null,"Színház","Szórakozás",{"v":200,"d":"200 Ft"},{"v":150,"d":"150 Ft"},{"$f":"KöltségetésRészletei[[#This Row],[Tervezett költség]]-KöltségetésRészletei[[#This Row],[Tényleges költség]]","v":{"v":50,"d":"50 Ft"}},{"$f":"KöltségetésRészletei[[#This Row],[Tényleges költség]]","v":{"v":150,"d":"150 Ft"}}]
[null,"Filmek","Szórakozás",{"v":50,"d":"50 Ft"},{"v":28,"d":"28 Ft"},{"$f":"KöltségetésRészletei[[#This Row],[Tervezett költség]]-KöltségetésRészletei[[#This Row],[Tényleges költség]]","v":{"v":22,"d":"22 Ft"}},{"$f":"KöltségetésRészletei[[#This Row],[Tényleges költség]]","v":{"v":28,"d":"28 Ft"}}]
[null,"Zene (CD-k, letöltések stb.)","Szórakozás",{"v":50,"d":"50 Ft"},{"v":30,"d":"30 Ft"},{"$f":"KöltségetésRészletei[[#This Row],[Tervezett költség]]-KöltségetésRészletei[[#This Row],[Tényleges költség]]","v":{"v":20,"d":"20 Ft"}},{"$f":"KöltségetésRészletei[[#This Row],[Tényleges költség]]","v":{"v":30,"d":"30 Ft"}}]
[null,"Sportesemények","Szórakozás",{"v":0,"d":"0 Ft"},{"v":40,"d":"40 Ft"},{"$f":"KöltségetésRészletei[[#This Row],[Tervezett költség]]-KöltségetésRészletei[[#This Row],[Tényleges költség]]","v":{"v":-40,"d":"-40 Ft"}},{"$f":"KöltségetésRészletei[[#This Row],[Tényleges költség]]","v":{"v":40,"d":"40 Ft"}}]
[null,"Videó/DVD (vásárlás)","Szórakozás",{"v":20,"d":"20 Ft"},{"v":50,"d":"50 Ft"},{"$f":"KöltségetésRészletei[[#This Row],[Tervezett költség]]-KöltségetésRészletei[[#This Row],[Tényleges költség]]","v":{"v":-30,"d":"-30 Ft"}},{"$f":"KöltségetésRészletei[[#This Row],[Tényleges költség]]","v":{"v":50,"d":"50 Ft"}}]
[null,"Videó/DVD (kölcsönzés)","Szórakozás",{"v":30,"d":"30 Ft"},{"v":20,"d":"20 Ft"},{"$f":"KöltségetésRészletei[[#This Row],[Tervezett költség]]-KöltségetésRészletei[[#This Row],[Tényleges költség]]","v":{"v":10,"d":"10 Ft"}},{"$f":"KöltségetésRészletei[[#This Row],[Tényleges költség]]","v":{"v":20,"d":"20 Ft"}}]
[null,"Étterem","Étel",{"v":1000,"d":"1,000 Ft"},{"v":1200,"d":"1,200 Ft"},{"$f":"KöltségetésRészletei[[#This Row],[Tervezett költség]]-KöltségetésRészletei[[#This Row],[Tényleges költség]]","v":{"v":-200,"d":"-200 Ft"}},{"$f":"KöltségetésRészletei[[#This Row],[Tényleges költség]]","v":{"v":1200,"d":"1,200 Ft"}}]
[null,"Bevásárlás","Étel",{"v":100,"d":"100 Ft"},{"v":120,"d":"120 Ft"},{"$f":"KöltségetésRészletei[[#This Row],[Tervezett költség]]-KöltségetésRészletei[[#This Row],[Tényleges költség]]","v":{"v":-20,"d":"-20 Ft"}},{"$f":"KöltségetésRészletei[[#This Row],[Tényleges költség]]","v":{"v":120,"d":"120 Ft"}}]
[null,"Jótékonyság 1","Ajándék és jótékonyság",{"v":75,"d":"75 Ft"},{"v":100,"d":"100 Ft"},{"$f":"KöltségetésRészletei[[#This Row],[Tervezett költség]]-KöltségetésRészletei[[#This Row],[Tényleges költség]]","v":{"v":-25,"d":"-25 Ft"}},{"$f":"KöltségetésRészletei[[#This Row],[Tényleges költség]]","v":{"v":100,"d":"100 Ft"}}]
[null,"Jótékonyság 2","Ajándék és jótékonyság",{"v":25,"d":"25 Ft"},{"v":25,"d":"25 Ft"},{"$f":"KöltségetésRészletei[[#This Row],[Tervezett költség]]-KöltségetésRészletei[[#This Row],[Tényleges költség]]","v":{"v":0,"d":"0 Ft"}},{"$f":"KöltségetésRészletei[[#This Row],[Tényleges költség]]","v":{"v":25,"d":"25 Ft"}}]
[null,"Ajándék 1","Ajándék és jótékonyság",null,null,{"$f":"KöltségetésRészletei[[#This Row],[Tervezett költség]]-KöltségetésRészletei[[#This Row],[Tényleges költség]]","v":{"v":0,"d":"0 Ft"}},{"$f":"KöltségetésRészletei[[#This Row],[Tényleges költség]]","v":{"v":0,"d":"0 Ft"}}]
[null,"Ajándék 2","Ajándék és jótékonyság",null,null,{"$f":"KöltségetésRészletei[[#This Row],[Tervezett költség]]-KöltségetésRészletei[[#This Row],[Tényleges költség]]","v":{"v":0,"d":"0 Ft"}},{"$f":"KöltségetésRészletei[[#This Row],[Tényleges költség]]","v":{"v":0,"d":"0 Ft"}}]
[null,"Kábel/műhold","Lakás",{"v":100,"d":"100 Ft"},{"v":100,"d":"100 Ft"},{"$f":"KöltségetésRészletei[[#This Row],[Tervezett költség]]-KöltségetésRészletei[[#This Row],[Tényleges költség]]","v":{"v":0,"d":"0 Ft"}},{"$f":"KöltségetésRészletei[[#This Row],[Tényleges költség]]","v":{"v":100,"d":"100 Ft"}}]
[null,"Áram","Lakás",{"v":45,"d":"45 Ft"},{"v":50,"d":"50 Ft"},{"$f":"KöltségetésRészletei[[#This Row],[Tervezett költség]]-KöltségetésRészletei[[#This Row],[Tényleges költség]]","v":{"v":-5,"d":"-5 Ft"}},{"$f":"KöltségetésRészletei[[#This Row],[Tényleges költség]]","v":{"v":50,"d":"50 Ft"}}]
[null,"Gáz","Lakás",{"v":300,"d":"300 Ft"},{"v":400,"d":"400 Ft"},{"$f":"KöltségetésRészletei[[#This Row],[Tervezett költség]]-KöltségetésRészletei[[#This Row],[Tényleges költség]]","v":{"v":-100,"d":"-100 Ft"}},{"$f":"KöltségetésRészletei[[#This Row],[Tényleges költség]]","v":{"v":400,"d":"400 Ft"}}]
[null,"Takarítószolgálat","Lakás",{"v":200,"d":"200 Ft"},null,{"$f":"KöltségetésRészletei[[#This Row],[Tervezett költség]]-KöltségetésRészletei[[#This Row],[Tényleges költség]]","v":{"v":200,"d":"200 Ft"}},{"$f":"KöltségetésRészletei[[#This Row],[Tényleges költség]]","v":{"v":0,"d":"0 Ft"}}]
[null,"Karbantartás","Lakás",{"v":200,"d":"200 Ft"},{"v":150,"d":"150 Ft"},{"$f":"KöltségetésRészletei[[#This Row],[Tervezett költség]]-KöltségetésRészletei[[#This Row],[Tényleges költség]]","v":{"v":50,"d":"50 Ft"}},{"$f":"KöltségetésRészletei[[#This Row],[Tényleges költség]]","v":{"v":150,"d":"150 Ft"}}]
[null,"Jelzálog vagy bérleti díj","Lakás",{"v":1700,"d":"1,700 Ft"},{"v":1700,"d":"1,700 Ft"},{"$f":"KöltségetésRészletei[[#This Row],[Tervezett költség]]-KöltségetésRészletei[[#This Row],[Tényleges költség]]","v":{"v":0,"d":"0 Ft"}},{"$f":"KöltségetésRészletei[[#This Row],[Tényleges költség]]","v":{"v":1700,"d":"1,700 Ft"}}]
[null,"Földgáz/olaj","Lakás",null,null,{"$f":"KöltségetésRészletei[[#This Row],[Tervezett költség]]-KöltségetésRészletei[[#This Row],[Tényleges költség]]","v":{"v":0,"d":"0 Ft"}},{"$f":"KöltségetésRészletei[[#This Row],[Tényleges költség]]","v":{"v":0,"d":"0 Ft"}}]
[null,"Online/internetszolgáltatás","Lakás",{"v":100,"d":"100 Ft"},{"v":100,"d":"100 Ft"},{"$f":"KöltségetésRészletei[[#This Row],[Tervezett költség]]-KöltségetésRészletei[[#This Row],[Tényleges költség]]","v":{"v":0,"d":"0 Ft"}},{"$f":"KöltségetésRészletei[[#This Row],[Tényleges költség]]","v":{"v":100,"d":"100 Ft"}}]
[null,"Telefon (mobil)","Lakás",{"v":60,"d":"60 Ft"},{"v":60,"d":"60 Ft"},{"$f":"KöltségetésRészletei[[#This Row],[Tervezett költség]]-KöltségetésRészletei[[#This Row],[Tényleges költség]]","v":{"v":0,"d":"0 Ft"}},{"$f":"KöltségetésRészletei[[#This Row],[Tényleges költség]]","v":{"v":60,"d":"60 Ft"}}]
[null,"Telefon (otthoni)","Lakás",{"v":35,"d":"35 Ft"},{"v":39,"d":"39 Ft"},{"$f":"KöltségetésRészletei[[#This Row],[Tervezett költség]]-KöltségetésRészletei[[#This Row],[Tényleges költség]]","v":{"v":-4,"d":"-4 Ft"}},{"$f":"KöltségetésRészletei[[#This Row],[Tényleges költség]]","v":{"v":39,"d":"39 Ft"}}]
[null,"Kellékek","Lakás",{"v":40,"d":"40 Ft"},{"v":55,"d":"55 Ft"},{"$f":"KöltségetésRészletei[[#This Row],[Tervezett költség]]-KöltségetésRészletei[[#This Row],[Tényleges költség]]","v":{"v":-15,"d":"-15 Ft"}},{"$f":"KöltségetésRészletei[[#This Row],[Tényleges költség]]","v":{"v":55,"d":"55 Ft"}}]
[null,"Szemétdíj és szelektív hulladékgyűjtés","Lakás",{"v":25,"d":"25 Ft"},{"v":22,"d":"22 Ft"},{"$f":"KöltségetésRészletei[[#This Row],[Tervezett költség]]-KöltségetésRészletei[[#This Row],[Tényleges költség]]","v":{"v":3,"d":"3 Ft"}},{"$f":"KöltségetésRészletei[[#This Row],[Tényleges költség]]","v":{"v":22,"d":"22 Ft"}}]
[null,"Víz és csatornázás","Lakás",{"v":25,"d":"25 Ft"},{"v":26,"d":"26 Ft"},{"$f":"KöltségetésRészletei[[#This Row],[Tervezett költség]]-KöltségetésRészletei[[#This Row],[Tényleges költség]]","v":{"v":-1,"d":"-1 Ft"}},{"$f":"KöltségetésRészletei[[#This Row],[Tényleges költség]]","v":{"v":26,"d":"26 Ft"}}]
[null,"Egészség","Biztosítás",{"v":400,"d":"400 Ft"},{"v":400,"d":"400 Ft"},{"$f":"KöltségetésRészletei[[#This Row],[Tervezett költség]]-KöltségetésRészletei[[#This Row],[Tényleges költség]]","v":{"v":0,"d":"0 Ft"}},{"$f":"KöltségetésRészletei[[#This Row],[Tényleges költség]]","v":{"v":400,"d":"400 Ft"}}]
[null,"Lakás","Biztosítás",{"v":400,"d":"400 Ft"},{"v":400,"d":"400 Ft"},{"$f":"KöltségetésRészletei[[#This Row],[Tervezett költség]]-KöltségetésRészletei[[#This Row],[Tényleges költség]]","v":{"v":0,"d":"0 Ft"}},{"$f":"KöltségetésRészletei[[#This Row],[Tényleges költség]]","v":{"v":400,"d":"400 Ft"}}]
[null,"Élet","Biztosítás",{"v":100,"d":"100 Ft"},{"v":100,"d":"100 Ft"},{"$f":"KöltségetésRészletei[[#This Row],[Tervezett költség]]-KöltségetésRészletei[[#This Row],[Tényleges költség]]","v":{"v":0,"d":"0 Ft"}},{"$f":"KöltségetésRészletei[[#This Row],[Tényleges költség]]","v":{"v":100,"d":"100 Ft"}}]
[null,"Hitelkártya 1","Hitelek",{"v":200,"d":"200 Ft"},{"v":200,"d":"200 Ft"},{"$f":"KöltségetésRészletei[[#This Row],[Tervezett költség]]-KöltségetésRészletei[[#This Row],[Tényleges költség]]","v":{"v":0,"d":"0 Ft"}},{"$f":"KöltségetésRészletei[[#This Row],[Tényleges költség]]","v":{"v":200,"d":"200 Ft"}}]
[null,"Hitelkártya 2","Hitelek",null,null,{"$f":"KöltségetésRészletei[[#This Row],[Tervezett költség]]-KöltségetésRészletei[[#This Row],[Tényleges költség]]","v":{"v":0,"d":"0 Ft"}},{"$f":"KöltségetésRészletei[[#This Row],[Tényleges költség]]","v":{"v":0,"d":"0 Ft"}}]
[null,"Hitelkártya 3","Hitelek",null,null,{"$f":"KöltségetésRészletei[[#This Row],[Tervezett költség]]-KöltségetésRészletei[[#This Row],[Tényleges költség]]","v":{"v":0,"d":"0 Ft"}},{"$f":"KöltségetésRészletei[[#This Row],[Tényleges költség]]","v":{"v":0,"d":"0 Ft"}}]
[null,"Személyes","Hitelek",null,null,{"$f":"KöltségetésRészletei[[#This Row],[Tervezett költség]]-KöltségetésRészletei[[#This Row],[Tényleges költség]]","v":{"v":0,"d":"0 Ft"}},{"$f":"KöltségetésRészletei[[#This Row],[Tényleges költség]]","v":{"v":0,"d":"0 Ft"}}]
[null,"Diák","Hitelek",null,null,{"$f":"KöltségetésRészletei[[#This Row],[Tervezett költség]]-KöltségetésRészletei[[#This Row],[Tényleges költség]]","v":{"v":0,"d":"0 Ft"}},{"$f":"KöltségetésRészletei[[#This Row],[Tényleges költség]]","v":{"v":0,"d":"0 Ft"}}]
[null,"Ruhanemű","Kozmetikumok",{"v":150,"d":"150 Ft"},{"v":140,"d":"140 Ft"},{"$f":"KöltségetésRészletei[[#This Row],[Tervezett költség]]-KöltségetésRészletei[[#This Row],[Tényleges költség]]","v":{"v":10,"d":"10 Ft"}},{"$f":"KöltségetésRészletei[[#This Row],[Tényleges költség]]","v":{"v":140,"d":"140 Ft"}}]
[null,"Tisztító","Kozmetikumok",null,null,{"$f":"KöltségetésRészletei[[#This Row],[Tervezett költség]]-KöltségetésRészletei[[#This Row],[Tényleges költség]]","v":{"v":0,"d":"0 Ft"}},{"$f":"KöltségetésRészletei[[#This Row],[Tényleges költség]]","v":{"v":0,"d":"0 Ft"}}]
[null,"Haj- és körömápolás","Kozmetikumok",null,null,{"$f":"KöltségetésRészletei[[#This Row],[Tervezett költség]]-KöltségetésRészletei[[#This Row],[Tényleges költség]]","v":{"v":0,"d":"0 Ft"}},{"$f":"KöltségetésRészletei[[#This Row],[Tényleges költség]]","v":{"v":0,"d":"0 Ft"}}]
[null,"Egészségklub","Kozmetikumok",null,null,{"$f":"KöltségetésRészletei[[#This Row],[Tervezett költség]]-KöltségetésRészletei[[#This Row],[Tényleges költség]]","v":{"v":0,"d":"0 Ft"}},{"$f":"KöltségetésRészletei[[#This Row],[Tényleges költség]]","v":{"v":0,"d":"0 Ft"}}]
[null,"Egészségügy","Kozmetikumok",null,null,{"$f":"KöltségetésRészletei[[#This Row],[Tervezett költség]]-KöltségetésRészletei[[#This Row],[Tényleges költség]]","v":{"v":0,"d":"0 Ft"}},{"$f":"KöltségetésRészletei[[#This Row],[Tényleges költség]]","v":{"v":0,"d":"0 Ft"}}]
[null,"Étel","Háziállatok",{"v":150,"d":"150 Ft"},{"v":75,"d":"75 Ft"},{"$f":"KöltségetésRészletei[[#This Row],[Tervezett költség]]-KöltségetésRészletei[[#This Row],[Tényleges költség]]","v":{"v":75,"d":"75 Ft"}},{"$f":"KöltségetésRészletei[[#This Row],[Tényleges költség]]","v":{"v":75,"d":"75 Ft"}}]
[null,"Ápolás","Háziállatok",{"v":20,"d":"20 Ft"},{"v":25,"d":"25 Ft"},{"$f":"KöltségetésRészletei[[#This Row],[Tervezett költség]]-KöltségetésRészletei[[#This Row],[Tényleges költség]]","v":{"v":-5,"d":"-5 Ft"}},{"$f":"KöltségetésRészletei[[#This Row],[Tényleges költség]]","v":{"v":25,"d":"25 Ft"}}]
[null,"Egészségügy","Háziállatok",null,null,{"$f":"KöltségetésRészletei[[#This Row],[Tervezett költség]]-KöltségetésRészletei[[#This Row],[Tényleges költség]]","v":{"v":0,"d":"0 Ft"}},{"$f":"KöltségetésRészletei[[#This Row],[Tényleges költség]]","v":{"v":0,"d":"0 Ft"}}]
[null,"Játékok","Háziállatok",null,null,{"$f":"KöltségetésRészletei[[#This Row],[Tervezett költség]]-KöltségetésRészletei[[#This Row],[Tényleges költség]]","v":{"v":0,"d":"0 Ft"}},{"$f":"KöltségetésRészletei[[#This Row],[Tényleges költség]]","v":{"v":0,"d":"0 Ft"}}]
[null,"Befektetési számla","Megtakarítások és befektetések",{"v":200,"d":"200 Ft"},{"v":200,"d":"200 Ft"},{"$f":"KöltségetésRészletei[[#This Row],[Tervezett költség]]-KöltségetésRészletei[[#This Row],[Tényleges költség]]","v":{"v":0,"d":"0 Ft"}},{"$f":"KöltségetésRészletei[[#This Row],[Tényleges költség]]","v":{"v":200,"d":"200 Ft"}}]
[null,"Nyugdíjszámla","Megtakarítások és befektetések",null,null,{"$f":"KöltségetésRészletei[[#This Row],[Tervezett költség]]-KöltségetésRészletei[[#This Row],[Tényleges költség]]","v":{"v":0,"d":"0 Ft"}},{"$f":"KöltségetésRészletei[[#This Row],[Tényleges költség]]","v":{"v":0,"d":"0 Ft"}}]
[null,"Szövetségi","Adók",{"v":300,"d":"300 Ft"},{"v":300,"d":"300 Ft"},{"$f":"KöltségetésRészletei[[#This Row],[Tervezett költség]]-KöltségetésRészletei[[#This Row],[Tényleges költség]]","v":{"v":0,"d":"0 Ft"}},{"$f":"KöltségetésRészletei[[#This Row],[Tényleges költség]]","v":{"v":300,"d":"300 Ft"}}]
[null,"Helyi","Adók",null,null,{"$f":"KöltségetésRészletei[[#This Row],[Tervezett költség]]-KöltségetésRészletei[[#This Row],[Tényleges költség]]","v":{"v":0,"d":"0 Ft"}},{"$f":"KöltségetésRészletei[[#This Row],[Tényleges költség]]","v":{"v":0,"d":"0 Ft"}}]
[null,"Állami","Adók",null,null,{"$f":"KöltségetésRészletei[[#This Row],[Tervezett költség]]-KöltségetésRészletei[[#This Row],[Tényleges költség]]","v":{"v":0,"d":"0 Ft"}},{"$f":"KöltségetésRészletei[[#This Row],[Tényleges költség]]","v":{"v":0,"d":"0 Ft"}}]
[null,"Busz/taxi","Közlekedés",{"v":100,"d":"100 Ft"},{"v":150,"d":"150 Ft"},{"$f":"KöltségetésRészletei[[#This Row],[Tervezett költség]]-KöltségetésRészletei[[#This Row],[Tényleges költség]]","v":{"v":-50,"d":"-50 Ft"}},{"$f":"KöltségetésRészletei[[#This Row],[Tényleges költség]]","v":{"v":150,"d":"150 Ft"}}]
[null,"Üzemanyag","Közlekedés",{"v":450,"d":"450 Ft"},{"v":400,"d":"400 Ft"},{"$f":"KöltségetésRészletei[[#This Row],[Tervezett költség]]-KöltségetésRészletei[[#This Row],[Tényleges költség]]","v":{"v":50,"d":"50 Ft"}},{"$f":"KöltségetésRészletei[[#This Row],[Tényleges költség]]","v":{"v":400,"d":"400 Ft"}}]
[null,"Biztosítás","Közlekedés",{"v":300,"d":"300 Ft"},{"v":300,"d":"300 Ft"},{"$f":"KöltségetésRészletei[[#This Row],[Tervezett költség]]-KöltségetésRészletei[[#This Row],[Tényleges költség]]","v":{"v":0,"d":"0 Ft"}},{"$f":"KöltségetésRészletei[[#This Row],[Tényleges költség]]","v":{"v":300,"d":"300 Ft"}}]
[null,"Engedélyek ","Közlekedés",{"v":25,"d":"25 Ft"},{"v":25,"d":"25 Ft"},{"$f":"KöltségetésRészletei[[#This Row],[Tervezett költség]]-KöltségetésRészletei[[#This Row],[Tényleges költség]]","v":{"v":0,"d":"0 Ft"}},{"$f":"KöltségetésRészletei[[#This Row],[Tényleges költség]]","v":{"v":25,"d":"25 Ft"}}]
[null,"Karbantartás","Közlekedés",{"v":100,"d":"100 Ft"},{"v":50,"d":"50 Ft"},{"$f":"KöltségetésRészletei[[#This Row],[Tervezett költség]]-KöltségetésRészletei[[#This Row],[Tényleges költség]]","v":{"v":50,"d":"50 Ft"}},{"$f":"KöltségetésRészletei[[#This Row],[Tényleges költség]]","v":{"v":50,"d":"50 Ft"}}]
[null,"Parkolási díjak","Közlekedés",null,null,{"$f":"KöltségetésRészletei[[#This Row],[Tervezett költség]]-KöltségetésRészletei[[#This Row],[Tényleges költség]]","v":{"v":0,"d":"0 Ft"}},{"$f":"KöltségetésRészletei[[#This Row],[Tényleges költség]]","v":{"v":0,"d":"0 Ft"}}]
[null,"Autó törlesztése","Közlekedés",{"v":450,"d":"450 Ft"},{"v":450,"d":"450 Ft"},{"$f":"KöltségetésRészletei[[#This Row],[Tervezett költség]]-KöltségetésRészletei[[#This Row],[Tényleges költség]]","v":{"v":0,"d":"0 Ft"}},{"$f":"KöltségetésRészletei[[#This Row],[Tényleges költség]]","v":{"v":450,"d":"450 Ft"}}]
[null,"Összeg",null,{"$f":"SUBTOTAL(109,KöltségetésRészletei[Tervezett költség])","v":{"v":7915,"d":"7,915 Ft"}},{"$f":"SUBTOTAL(109,KöltségetésRészletei[Tényleges költség])","v":{"v":7860,"d":"7,860 Ft"}},{"$f":"SUBTOTAL(109,KöltségetésRészletei[Különbözet])","v":{"v":55,"d":"55 Ft"}}]

{"sheet":"További adatok","index":3,"n_rows":15,"n_cols":5,"rows_kept":15}
["Ezen a munkalapon módosíthatja a Kategória oszlop legördülő listáját a Havi kiadások munkalap Költségvetés részletei táblázatában. Ehhez módosítsa a kategóriát, vagy adjon meg egy új kategóriát az E2 cellában kezdődő Költségvetési kategória keresése. A B2 cellában kezdődik a Havi költségvetési jelentés munkalap Költségvetés áttekintése diagramjához tartozó kimutatás.","A Költségvetés áttekintése diagramhoz tartozó kimutatás",null,null,"Keresési lista a költségvetés részleteinek kategóriájához"]
[null,"Kategória","Költség",null,"Költségvetési kategória keresése"]
[null,"Gyerekek",{"v":140,"d":"140 Ft"},null,"Gyerekek"]
[null,"Szórakozás",{"v":358,"d":"358 Ft"},null,"Szórakozás"]
[null,"Étel",{"v":1320,"d":"1,320 Ft"},null,"Étel"]
[null,"Ajándék és jótékonyság",{"v":125,"d":"125 Ft"},null,"Ajándék és jótékonyság"]
[null,"Lakás",{"v":2702,"d":"2,702 Ft"},null,"Lakás"]
[null,"Biztosítás",{"v":900,"d":"900 Ft"},null,"Biztosítás"]
[null,"Hitelek",{"v":200,"d":"200 Ft"},null,"Hitelek"]
[null,"Kozmetikumok",{"v":140,"d":"140 Ft"},null,"Kozmetikumok"]
[null,"Háziállatok",{"v":100,"d":"100 Ft"},null,"Háziállatok"]
[null,"Megtakarítások és befektetések",{"v":200,"d":"200 Ft"},null,"Megtakarítások és befektetések"]
[null,"Adók",{"v":300,"d":"300 Ft"},null,"Adók"]
[null,"Közlekedés",{"v":1375,"d":"1,375 Ft"},null,"Közlekedés"]
[null,"Végösszeg",{"v":7860,"d":"7,860 Ft"}]